Workbook

Sheet Sheet1
A1: Online Evaluation Response Rates, by Department & Program, May 5, 2011
A3: Department or Program | B3: # Responses | C3: # Enrolled | D3: % Respond
A4: Honors in the Social Sciences | B4: 5 | C4: 15 | D4: =SUM(B4/C4) -> 33.3%
A5: Korean | B5: 9 | C5: 33 | D5: =SUM(B5/C5) -> 27.3%
A6: Honors in Math & Natural Sciences | B6: 18 | C6: 80 | D6: =SUM(B6/C6) -> 22.5%
A7: Honors | B7: 35 | C7: 161 | D7: =SUM(B7/C7) -> 21.7%
A8: Chinese | B8: 36 | C8: 171 | D8: =SUM(B8/C8) -> 21.1%
A9: Latin | B9: 2 | C9: 10 | D9: =SUM(B9/C9) -> 20.0%
A10: ECP-Educational Leadership | B10: 37 | C10: 189 | D10: =SUM(B10/C10) -> 19.6%
A11: Modern Greek | B11: 13 | C11: 75 | D11: =SUM(B11/C11) -> 17.3%
A12: Risk Management | B12: 26 | C12: 156 | D12: =SUM(B12/C12) -> 16.7%
A13: Special Studies | B13: 13 | C13: 78 | D13: =SUM(B13/C13) -> 16.7%
A14: Library | B14: 15 | C14: 96 | D14: =SUM(B14/C14) -> 15.6%
A15: Chemistry | B15: 290 | C15: 1859 | D15: =SUM(B15/C15) -> 15.6%
A16: East Asian Studies | B16: 37 | C16: 242 | D16: =SUM(B16/C16) -> 15.3%
A17: Accounting | B17: 719 | C17: 4731 | D17: =SUM(B17/C17) -> 15.2%
A18: Womens Studies | B18: 13 | C18: 86 | D18: =SUM(B18/C18) -> 15.1%
A19: Labor Studies | B19: 7 | C19: 47 | D19: =SUM(B19/C19) -> 14.9%
A20: Psychology | B20: 807 | C20: 5434 | D20: =SUM(B20/C20) -> 14.9%
A21: Classics | B21: 34 | C21: 231 | D21: =SUM(B21/C21) -> 14.7%
A22: Environmental Science | B22: 140 | C22: 954 | D22: =SUM(B22/C22) -> 14.7%
A23: Comparative Literature | B23: 166 | C23: 1134 | D23: =SUM(B23/C23) -> 14.6%
A24: Physics | B24: 135 | C24: 941 | D24: =SUM(B24/C24) -> 14.3%
A25: Biology | B25: 408 | C25: 2911 | D25: =SUM(B25/C25) -> 14.0%
A26: Japanese | B26: 25 | C26: 182 | D26: =SUM(B26/C26) -> 13.7%
A27: Anthropology | B27: 345 | C27: 2512 | D27: =SUM(B27/C27) -> 13.7%
A28: Library & Information Science | B28: 139 | C28: 1028 | D28: =SUM(B28/C28) -> 13.5%
A29: Linguistics & Communications Disorders | B29: 241 | C29: 1803 | D29: =SUM(B29/C29) -> 13.4%
A30: Middle Eastern Studies | B30: 8 | C30: 61 | D30: =SUM(B30/C30) -> 13.1%
A31: Art History | B31: 98 | C31: 751 | D31: =SUM(B31/C31) -> 13.0%
A32: Hebrew | B32: 9 | C32: 69 | D32: =SUM(B32/C32) -> 13.0%
A33: English | B33: 557 | C33: 4332 | D33: =SUM(B33/C33) -> 12.9%
A34: Business | B34: 136 | C34: 1061 | D34: =SUM(B34/C34) -> 12.8%
A35: Africana Studies | B35: 17 | C35: 135 | D35: =SUM(B35/C35) -> 12.6%
A36: German | B36: 6 | C36: 48 | D36: =SUM(B36/C36) -> 12.5%
A37: Student Personnel | B37: 11 | C37: 88 | D37: =SUM(B37/C37) -> 12.5%
A38: Geology | B38: 108 | C38: 882 | D38: =SUM(B38/C38) -> 12.2%
A39: Sociology | B39: 484 | C39: 3967 | D39: =SUM(B39/C39) -> 12.2%
A40: Journalism | B40: 24 | C40: 198 | D40: =SUM(B40/C40) -> 12.1%
A41: Elementary & Early Childhood Education | B41: 309 | C41: 2553 | D41: =SUM(B41/C41) -> 12.1%
A42: Economics | B42: 454 | C42: 3821 | D42: =SUM(B42/C42) -> 11.9%
A43: Arabic | B43: 5 | C43: 43 | D43: =SUM(B43/C43) -> 11.6%
A44: Drama | B44: 117 | C44: 1007 | D44: =SUM(B44/C44) -> 11.6%
A45: Astronomy | B45: 38 | C45: 344 | D45: =SUM(B45/C45) -> 11.0%
A46: ECP-Special Education | B46: 77 | C46: 701 | D46: =SUM(B46/C46) -> 11.0%
A47: Dance | B47: 55 | C47: 507 | D47: =SUM(B47/C47) -> 10.8%
A48: Mathematics | B48: 414 | C48: 3818 | D48: =SUM(B48/C48) -> 10.8%
A49: Italian | B49: 25 | C49: 232 | D49: =SUM(B49/C49) -> 10.8%
A50: American Studies | B50: 6 | C50: 57 | D50: =SUM(B50/C50) -> 10.5%
A51: Art (Studio Art) | B51: 141 | C51: 1389 | D51: =SUM(B51/C51) -> 10.2%
A52: Computer Science | B52: 200 | C52: 1977 | D52: =SUM(B52/C52) -> 10.1%
A53: Urban Studies | B53: 161 | C53: 1659 | D53: =SUM(B53/C53) -> 9.7%
A54: ACE | B54: 15 | C54: 155 | D54: =SUM(B54/C54) -> 9.7%
A55: Family, Nutrition & Exercise Sciences | B55: 344 | C55: 3556 | D55: =SUM(B55/C55) -> 9.7%
A56: Philosophy | B56: 124 | C56: 1284 | D56: =SUM(B56/C56) -> 9.7%
A57: Spanish | B57: 134 | C57: 1390 | D57: =SUM(B57/C57) -> 9.6%
A58: History | B58: 248 | C58: 2607 | D58: =SUM(B58/C58) -> 9.5%
A59: Political Science | B59: 207 | C59: 2180 | D59: =SUM(B59/C59) -> 9.5%
A60: European Languages | B60: 2 | C60: 22 | D60: =SUM(B60/C60) -> 9.1%
A61: Religious Studies | B61: 2 | C61: 22 | D61: =SUM(B61/C61) -> 9.1%
A62: Media Studies | B62: 122 | C62: 1370 | D62: =SUM(B62/C62) -> 8.9%
A63: ECP-School Psychology | B63: 28 | C63: 315 | D63: =SUM(B63/C63) -> 8.9%
A64: French | B64: 24 | C64: 281 | D64: =SUM(B64/C64) -> 8.5%
A65: Secondary Education & Youth Services | B65: 152 | C65: 1817 | D65: =SUM(B65/C65) -> 8.4%
A66: Russian | B66: 8 | C66: 97 | D66: =SUM(B66/C66) -> 8.2%
A67: Business & Liberal Arts | B67: 39 | C67: 497 | D67: =SUM(B67/C67) -> 7.8%
A68: Byz & Mod Greek Studies | B68: 2 | C68: 28 | D68: =SUM(B68/C68) -> 7.1%
A69: ECP-Counselor Education | B69: 19 | C69: 322 | D69: =SUM(B69/C69) -> 5.9%
A70: College English as a Second Language | B70: 4 | C70: 135 | D70: =SUM(B70/C70) -> 3.0%
A71: SEYS-Literacy | B71: 4 | C71: 139 | D71: =SUM(B71/C71) -> 2.9%
A72: Honors in the Humanities | B72: 3 | C72: 286 | D72: =SUM(B72/C72) -> 1.0%
A73: Biochemistry | B73: 0 | C73: 6 | D73: =SUM(B73/C73) -> 0.0%
A74: Coop Education | B74: 0 | C74: 7 | D74: =SUM(B74/C74) -> 0.0%
A75: Irish Studies | B75: 0 | C75: 12 | D75: =SUM(B75/C75) -> 0.0%
A76: Liberal Studies | B76: 0 | C76: 13 | D76: =SUM(B76/C76) -> 0.0%
A77: Music | B77: 0 | C77: 2732 | D77: =SUM(B77/C77) -> 0.0%
A78: Portuguese | B78: 0 | C78: 10 | D78: =SUM(B78/C78) -> 0.0%
A79: TOTAL | B79: 8708 | C79: =SUM(C4:C78) -> 74142 | D79: =SUM(B79/C79) -> 11.7%

Sheet Sheet2

Sheet Sheet3
